[Event "FIDE WYCC Open U14 2023"]
[Site "Montesilvano"]
[Date "2023.11.23"]
[Round "10.20"]
[White "Asikainen, Eeli"]
[Black "Dinh Nho Kiet"]
[Result "0-1"]
[ECO "B12"]
[WhiteElo "2081"]
[BlackElo "2253"]
[Annotator "RC"]
[PlyCount "58"]
[EventDate "2023.11.13"]
[EventType "swiss"]
[EventCountry "ITA"]
[SourceTitle "playchess.com"]
[Source "ChessBase"]
[SourceQuality "1"]
[TimeControl "40/5400+30:1800+30"]

1. e4 {[%emt 0:00:02]} c6 {[%emt 0:00:15]} 2. d4 {[%emt 0:00:05]} d5 {[%emt 0:00:05]} 3. e5 {[%emt 0:00:04]} Bf5 {[%emt 0:00:16]} 4. h4 {[%emt 0:00:15]} h5 {[%emt 0:00:16]} 5. Bd3 {[%emt 0:00:06]} Bxd3 {[%emt 0:00:11]} 6. Qxd3 {[%emt 0:00:04]} Qa5+ {[%emt 0:01:47]} 7. Nd2 {[%emt 0:00:19]} e6 {[%emt 0:02:49]} 8. Ngf3 {[%emt 0:00:31]} Nh6 {[%emt 0:04:10]} 9. O-O {[%emt 0:02:25]} Nf5 {[%emt 0:00:07]} 10. Nb3 {[%emt 0:01:38]} Qa6 {[%emt 0:00:10]} 11. Qd1 {[%emt 0:00:29]} Be7 {[%emt 0:03:08]} 12. g3 {[%emt 0:04:43]} Nd7 {[%emt 0:03:01]} 13. Bg5 {[%emt 0:01:34]} Bxg5 {[%emt 0:06:59]} 14. Nxg5 {[%emt 0:00:19]} Rc8 {[%emt 0:00:42]} 15. c3 {[%emt 0:07:55]} c5 {[%emt 0:08:02]} 16. Re1 {[%emt 0:06:54]} b6 {[%emt 0:03:47]} 17. Qf3 {[%emt 0:14:49]} Qa4 {[%emt 0:07:07]} 18. Kg2 {[%emt 0:25:28]} Nf8 {[%emt 0:05:08]} 19. Kh2 {[%emt 0:15:24]} Ng6 {[%emt 0:00:55]} 20. Re2 {[%emt 0:08:21]} Rc7 {[%emt 0:02:31]} 21. dxc5 {[%emt 0:04:03]} bxc5 {[%emt 0:01:34]} 22. Rc1 {[%emt 0:00:44]} Ngxh4 {[%emt 0:02:54]} 23. gxh4 {[%emt 0:01:26]} Qxh4+ {[%emt 0:00:06]} 24. Nh3 {[%emt 0:02:04]} g5 {[%emt 0:00:08]} 25. c4 {[%emt 0:00:50]} g4 {[%emt 0:01:02]} 26. Qd3 {[%emt 0:00:29]} Rg8 {[%emt 0:09:20]} 27. Rg1 {[%emt 0:00:49]} dxc4 {[%emt 0:00:17]} 28. Qc3 {[%emt 0:00:09]} cxb3 {[%emt 0:00:08]} 29. axb3 {[%emt 0:01:23]} Rg6 {[%emt 0:00:45]} 0-1

[Event "FIDE WYCC Open U14 2023"]
[Site "Montesilvano"]
[Date "2023.11.23"]
[Round "10.21"]
[White "Nurgaliyev, Sauat"]
[Black "Sommer, Justus"]
[Result "1-0"]
[ECO "A06"]
[WhiteElo "2235"]
[BlackElo "2013"]
[Annotator "ChessBase"]
[PlyCount "53"]
[EventDate "2023.11.13"]
[EventType "swiss"]
[EventCountry "ITA"]
[SourceTitle "playchess.com"]
[Source "ChessBase"]
[SourceQuality "1"]
[TimeControl "40/5400+30:1800+30"]

1. Nf3 {[%emt 0:00:10]} d5 {[%emt 0:00:14]} 2. g3 {[%emt 0:00:30]} Nf6 {[%emt 0:00:13]} 3. Bg2 {[%emt 0:00:32]} e6 {[%emt 0:00:17]} 4. O-O {[%emt 0:00:07]} Be7 {[%emt 0:00:17]} 5. d3 {[%emt 0:00:05]} O-O {[%emt 0:03:43]} 6. Nbd2 {[%emt 0:00:14]} b6 {[%emt 0:00:33]} 7. e4 {[%emt 0:00:54]} dxe4 {[%emt 0:04:10]} 8. dxe4 {[%emt 0:00:54]} Bb7 {[%emt 0:01:45]} 9. Qe2 {[%emt 0:01:59]} c5 {[%emt 0:06:59]} 10. e5 {[%emt 0:02:45]} Nd5 {[%emt 0:02:30]} 11. Rd1 {[%emt 0:04:27]} Qc8 {[%emt 0:04:17]} 12. c4 {[%emt 0:01:19]} Nb4 {[%emt 0:01:54]} 13. Ne4 {[%emt 0:01:45]} Bc6 {[%emt 0:08:39]} 14. Bg5 {[%emt 0:06:14]} Bxg5 {[%emt 0:02:48]} 15. Nfxg5 {[%emt 0:01:38]} h6 {[%emt 0:06:18]} 16. a3 {[%emt 0:06:07]} hxg5 {[%emt 0:09:35]} 17. axb4 {[%emt 0:00:26]} cxb4 {[%emt 0:10:33]} 18. Nf6+ {[%emt 0:01:04]} gxf6 {[%emt 0:00:18]} 19. exf6 {[%emt 0:00:09]} e5 {[%emt 0:05:00]} 20. Rd6 {[%emt 0:15:00]} Bxg2 {[%emt 0:02:16]} 21. Qh5 {[%emt 0:01:08]} Qf5 {[%emt 0:05:58]} 22. Qh6 {[%emt 0:00:15]} Qg6 {[%emt 0:00:46]} 23. Qxf8+ {[%emt 0:00:17]} Kh7 {[%emt 0:00:08]} 24. Kxg2 {[%emt 0:02:02]} a5 {[%emt 0:02:52]} 25. Rad1 {[%emt 0:02:33]} a4 {[%emt 0:01:03]} 26. Rd8 {[%emt 0:00:12]} Qxf6 {[%emt 0:00:20]} 27. Qg8+ {[%emt 0:00:04]} 1-0

[Event "FIDE WYCC Open U14 2023"]
[Site "Montesilvano"]
[Date "2023.11.23"]
[Round "10.22"]
[White "Morkunas, Gustas"]
[Black "Brattgjerd, Isak Vinh"]
[Result "1-0"]
[ECO "B13"]
[WhiteElo "2052"]
[BlackElo "2235"]
[Annotator "RC"]
[PlyCount "93"]
[EventDate "2023.11.13"]
[EventType "swiss"]
[EventCountry "ITA"]
[SourceTitle "playchess.com"]
[Source "ChessBase"]
[SourceQuality "1"]
[TimeControl "40/5400+30:1800+30"]

1. e4 {[%emt 0:00:03]} c6 {[%emt 0:02:33]} 2. d4 {[%emt 0:00:05]} d5 {[%emt 0:00:03]} 3. exd5 {[%emt 0:00:07]} cxd5 {[%emt 0:00:04]} 4. Bd3 {[%emt 0:00:05]} Nc6 {[%emt 0:00:03]} 5. c3 {[%emt 0:00:05]} Nf6 {[%emt 0:00:04]} 6. h3 {[%emt 0:00:06]} e5 {[%emt 0:00:05]} 7. dxe5 {[%emt 0:00:26]} Nxe5 {[%emt 0:00:09]} 8. Nf3 {[%emt 0:00:06]} Nxd3+ {[%emt 0:00:04]} 9. Qxd3 {[%emt 0:00:05]} Bd6 {[%emt 0:00:04]} 10. O-O {[%emt 0:02:36]} O-O {[%emt 0:00:03]} 11. Bg5 {[%emt 0:00:06]} h6 {[%emt 0:00:11]} 12. Bh4 {[%emt 0:00:06]} g5 {[%emt 0:00:06]} 13. Bg3 {[%emt 0:00:04]} Nh5 {[%emt 0:01:27]} 14. Bxd6 {[%emt 0:10:55]} Qxd6 {[%emt 0:00:01]} 15. Nd4 {[%emt 0:01:25]} Nf4 {[%emt 0:00:12]} 16. Qf3 {[%emt 0:01:20]} Re8 {[%emt 0:00:53]} 17. Nd2 {[%emt 0:05:01]} Bd7 {[%emt 0:00:08]} 18. Rfe1 {[%emt 0:00:59]} a5 {[%emt 0:00:10]} 19. Re3 {[%emt 0:12:56]} Re7 {[%emt 0:30:15]} 20. Rae1 {[%emt 0:06:31]} Rae8 {[%emt 0:00:13]} 21. Nf1 {[%emt 0:07:43]} a4 {[%emt 0:02:16]} 22. Ng3 {[%emt 0:02:41]} Rxe3 {[%emt 0:07:12]} 23. Rxe3 {[%emt 0:04:52]} a3 {[%emt 0:11:48]} 24. b3 {[%emt 0:06:13]} Qg6 {[%emt 0:18:05]} 25. Rxe8+ {[%emt 0:07:36]} Bxe8 {[%emt 0:00:01]} 26. Ngf5 {[%emt 0:00:27]} Qf6 {[%emt 0:04:55]} 27. g3 {[%emt 0:12:35]} Bd7 {[%emt 0:00:16]} 28. gxf4 {[%emt 0:01:05]} Bxf5 {[%emt 0:00:20]} 29. Qxd5 {[%emt 0:08:36]} Bb1 {[%emt 0:02:25]} 30. fxg5 {[%emt 0:01:16]} Qxg5+ {[%emt 0:07:38]} 31. Qxg5+ {[%emt 0:00:24]} hxg5 {[%emt 0:00:01]} 32. Nb5 {[%emt 0:00:48]} Bxa2 {[%emt 0:00:02]} 33. b4 {[%emt 0:01:28]} Be6 {[%emt 0:00:01]} 34. Nxa3 {[%emt 0:00:15]} Bxh3 {[%emt 0:00:12]} 35. Nc4 {[%emt 0:01:25]} Be6 {[%emt 0:03:41]} 36. Nd6 {[%emt 0:01:53]} Bd5 {[%emt 0:00:10]} 37. c4 {[%emt 0:00:41]} Bc6 {[%emt 0:01:45]} 38. b5 {[%emt 0:01:38]} Bf3 {[%emt 0:00:02]} 39. Kh2 {[%emt 0:01:03]} Kf8 {[%emt 0:00:56]} 40. Kg3 {[%emt 0:00:00]} g4 {[%emt 0:00:00]} 41. Kf4 {[%emt 0:12:43]} Ke7 {[%emt 0:01:58]} 42. c5 {[%emt 0:01:13]} Ke6 {[%emt 0:00:26]} 43. Nf5 {[%emt 0:01:59]} Kd5 {[%emt 0:03:21]} 44. c6 {[%emt 0:03:25]} Ke6 {[%emt 0:00:39]} 45. c7 {[%emt 0:01:53]} Kd7 {[%emt 0:00:10]} 46. b6 {[%emt 0:00:07]} Bd5 {[%emt 0:03:38]} 47. Ne7 {[%emt 0:01:04]} 1-0

[Event "FIDE WYCC Open U14 2023"]
[Site "Montesilvano"]
[Date "2023.11.23"]
[Round "10.23"]
[White "Panda, Barnabas"]
[Black "Gkavardinas, Antonios"]
[Result "0-1"]
[ECO "D37"]
[WhiteElo "1905"]
[BlackElo "2230"]
[Annotator "RC"]
[PlyCount "118"]
[EventDate "2023.11.13"]
[EventType "swiss"]
[EventCountry "ITA"]
[SourceTitle "playchess.com"]
[Source "ChessBase"]
[SourceQuality "1"]
[TimeControl "40/5400+30:1800+30"]

1. d4 {[%emt 0:00:03]} d5 {[%emt 0:00:38]} 2. c4 {[%emt 0:00:19]} e6 {[%emt 0:00:20]} 3. Nf3 {[%emt 0:00:20]} Nf6 {[%emt 0:00:11]} 4. Nc3 {[%emt 0:00:18]} Be7 {[%emt 0:00:11]} 5. Bf4 {[%emt 0:00:16]} O-O {[%emt 0:00:15]} 6. e3 {[%emt 0:00:11]} Nbd7 {[%emt 0:00:15]} 7. c5 {[%emt 0:00:26]} c6 {[%emt 0:00:17]} 8. Bd3 {[%emt 0:01:29]} b6 {[%emt 0:01:09]} 9. b4 {[%emt 0:00:17]} a5 {[%emt 0:00:09]} 10. a3 {[%emt 0:00:07]} Ba6 {[%emt 0:00:29]} 11. O-O {[%emt 0:15:04]} Qc8 {[%emt 0:00:58]} 12. Re1 {[%emt 0:19:51]} Qb7 {[%emt 0:09:02]} 13. h3 {[%emt 0:08:56]} Bxd3 {[%emt 0:06:18]} 14. Qxd3 {[%emt 0:00:09]} Ra7 {[%emt 0:06:48]} 15. Reb1 {[%emt 0:13:37]} axb4 {[%emt 0:14:34]} 16. axb4 {[%emt 0:00:18]} Rfa8 {[%emt 0:05:41]} 17. Qd1 {[%emt 0:01:54]} b5 {[%emt 0:10:04]} 18. Rxa7 {[%emt 0:08:19]} Qxa7 {[%emt 0:03:26]} 19. Ne5 {[%emt 0:01:51]} Nxe5 {[%emt 0:02:13]} 20. dxe5 {[%emt 0:00:11]} Nd7 {[%emt 0:01:15]} 21. e4 {[%emt 0:00:38]} Qc7 {[%emt 0:02:48]} 22. exd5 {[%emt 0:01:58]} exd5 {[%emt 0:00:13]} 23. Qd4 {[%emt 0:01:36]} Nf8 {[%emt 0:01:24]} 24. Bg3 {[%emt 0:07:14]} Ne6 {[%emt 0:01:01]} 25. Qg4 {[%emt 0:00:34]} g6 {[%emt 0:08:56]} 26. Ne2 {[%emt 0:04:06]} h5 {[%emt 0:02:42]} 27. Qf3 {[%emt 0:00:15]} Qd7 {[%emt 0:01:00]} 28. Qd3 {[%emt 0:04:43]} h4 {[%emt 0:12:20]} 29. Bf4 {[%emt 0:02:46]} Ra2 {[%emt 0:02:01]} 30. Be3 {[%emt 0:00:26]} Qa7 {[%emt 0:01:11]} 31. f4 {[%emt 0:02:03]} Ra3 {[%emt 0:01:17]} 32. Qd2 {[%emt 0:01:44]} Ra1 {[%emt 0:01:41]} 33. Rxa1 {[%emt 0:01:10]} Qxa1+ {[%emt 0:00:03]} 34. Kh2 {[%emt 0:00:10]} Qb1 {[%emt 0:00:46]} 35. Nd4 {[%emt 0:03:00]} Nxd4 {[%emt 0:00:29]} 36. Qxd4 {[%emt 0:00:10]} Qf5 {[%emt 0:01:00]} 37. Qa1 {[%emt 0:01:14]} Qe6 {[%emt 0:02:29]} 38. Qa8+ {[%emt 0:00:44]} Kg7 {[%emt 0:00:58]} 39. Qe8 {[%emt 0:00:48]} g5 {[%emt 0:02:35]} 40. Kh1 {[%emt 0:00:00]} gxf4 {[%emt 0:00:00]} 41. Bxf4 {[%emt 0:01:06]} d4 {[%emt 0:08:19]} 42. Kg1 {[%emt 0:13:28]} d3 {[%emt 0:01:53]} 43. Kh1 {[%emt 0:01:49]} Qf5 {[%emt 0:08:32]} 44. Bd2 {[%emt 0:08:15]} Bg5 {[%emt 0:04:23]} 45. Bxg5 {[%emt 0:00:34]} Qxg5 {[%emt 0:00:02]} 46. e6 {[%emt 0:01:25]} Qc1+ {[%emt 0:01:18]} 47. Kh2 {[%emt 0:00:07]} Qf4+ {[%emt 0:00:05]} 48. Kg1 {[%emt 0:00:23]} Qe3+ {[%emt 0:00:52]} 49. Kh1 {[%emt 0:04:17]} Qxe6 {[%emt 0:01:44]} 50. Qd8 {[%emt 0:00:18]} Qd5 {[%emt 0:03:19]} 51. Qxh4 {[%emt 0:00:30]} d2 {[%emt 0:00:41]} 52. Qg4+ {[%emt 0:01:03]} Kf6 {[%emt 0:00:34]} 53. Qf4+ {[%emt 0:01:43]} Ke6 {[%emt 0:00:48]} 54. Qg4+ {[%emt 0:01:14]} Ke7 {[%emt 0:00:51]} 55. Qd1 {[%emt 0:01:42]} Qd4 {[%emt 0:01:13]} 56. Qe2+ {[%emt 0:00:47]} Kd8 {[%emt 0:00:41]} 57. Qd1 {[%emt 0:00:29]} Qe3 {[%emt 0:00:25]} 58. Qh5 {[%emt 0:00:34]} Qe1+ {[%emt 0:00:28]} 59. Kh2 {[%emt 0:00:04]} d1=Q {[%emt 0:00:32]} 0-1

[Event "FIDE WYCC Open U14 2023"]
[Site "Montesilvano"]
[Date "2023.11.23"]
[Round "10.24"]
[White "Myagmarsuren, Evsuld"]
[Black "Fan, Jingyi"]
[Result "1/2-1/2"]
[ECO "B47"]
[WhiteElo "2150"]
[BlackElo "2035"]
[Annotator "RC"]
[PlyCount "64"]
[EventDate "2023.11.13"]
[EventType "swiss"]
[EventCountry "ITA"]
[SourceTitle "playchess.com"]
[Source "ChessBase"]
[SourceQuality "1"]
[TimeControl "40/5400+30:1800+30"]

1. e4 {[%emt 0:00:01]} c5 {[%emt 0:00:05]} 2. Nf3 {[%emt 0:00:05]} e6 {[%emt 0:00:04]} 3. d4 {[%emt 0:00:04]} cxd4 {[%emt 0:00:04]} 4. Nxd4 {[%emt 0:00:09]} Nc6 {[%emt 0:00:04]} 5. Nc3 {[%emt 0:00:09]} Qc7 {[%emt 0:00:09]} 6. g3 {[%emt 0:00:08]} a6 {[%emt 0:00:07]} 7. Bg2 {[%emt 0:00:03]} Nf6 {[%emt 0:00:22]} 8. O-O {[%emt 0:00:10]} d6 {[%emt 0:00:07]} 9. Re1 {[%emt 0:00:38]} Nxd4 {[%emt 0:01:11]} 10. Qxd4 {[%emt 0:00:09]} Bd7 {[%emt 0:00:33]} 11. Bg5 {[%emt 0:21:21]} Be7 {[%emt 0:02:41]} 12. Rad1 {[%emt 0:04:30]} Rc8 {[%emt 0:11:35]} 13. e5 {[%emt 0:10:04]} dxe5 {[%emt 0:00:44]} 14. Rxe5 {[%emt 0:00:58]} O-O {[%emt 0:05:32]} 15. Bf4 {[%emt 0:18:03]} Qc4 {[%emt 0:31:25]} 16. Bxb7 {[%emt 0:08:29]} Qxd4 {[%emt 0:00:19]} 17. Rxd4 {[%emt 0:00:06]} Rb8 {[%emt 0:00:43]} 18. Bxa6 {[%emt 0:00:23]} Rxb2 {[%emt 0:00:22]} 19. Bd3 {[%emt 0:01:26]} Rc8 {[%emt 0:05:32]} 20. Bc1 {[%emt 0:02:17]} Rbb8 {[%emt 0:11:44]} 21. Ne2 {[%emt 0:02:23]} Rb1 {[%emt 0:01:24]} 22. Kg2 {[%emt 0:02:56]} Bc6+ {[%emt 0:05:11]} 23. f3 {[%emt 0:00:23]} Nd7 {[%emt 0:00:32]} 24. Ra5 {[%emt 0:00:32]} Bf6 {[%emt 0:02:57]} 25. Rc4 {[%emt 0:04:03]} Ne5 {[%emt 0:02:27]} 26. Rcc5 {[%emt 0:01:18]} Nd7 {[%emt 0:12:36]} 27. Rc4 {[%emt 0:04:25]} Ne5 {[%emt 0:01:05]} 28. Rcc5 {[%emt 0:05:32]} Nd7 {[%emt 0:04:03]} 29. Rc4 {[%emt 0:10:06]} Ne5 {[%emt 0:00:09]} 30. Rcc5 {[%emt 0:00:33]} Nd7 {[%emt 0:00:29]} 31. Rc4 {[%emt 0:00:50]} Ne5 {[%emt 0:00:05]} 32. Rcc5 {[%emt 0:00:11]} Nd7 {[%emt 0:00:09]} 1/2-1/2

[Event "FIDE WYCC Open U14 2023"]
[Site "Montesilvano"]
[Date "2023.11.23"]
[Round "10.25"]
[White "Arnold, Rhys"]
[Black "Schuricht, Emil Frederick"]
[Result "0-1"]
[ECO "B10"]
[WhiteElo "2146"]
[BlackElo "1998"]
[Annotator "NA RC"]
[PlyCount "100"]
[EventDate "2023.11.13"]
[EventType "swiss"]
[EventCountry "ITA"]
[SourceTitle "playchess.com"]
[Source "ChessBase"]
[SourceQuality "1"]
[TimeControl "40/5400+30:1800+30"]

1. e4 {[%emt 0:00:04]} c6 {[%emt 0:00:03]} 2. Nf3 {[%emt 0:00:09]} d5 {[%emt 0:00:05]} 3. Nc3 {[%emt 0:00:03]} dxe4 {[%emt 0:00:04]} 4. Nxe4 {[%emt 0:00:04]} Nf6 {[%emt 0:00:06]} 5. Qe2 {[%emt 0:00:02]} Nxe4 {[%emt 0:00:04]} 6. Qxe4 {[%emt 0:00:04]} Nd7 {[%emt 0:00:06]} 7. d4 {[%emt 0:00:03]} Nf6 {[%emt 0:04:34]} 8. Qf4 {[%emt 0:01:00]} Qa5+ {[%emt 0:05:57]} 9. Bd2 {[%emt 0:01:56]} Qf5 {[%emt 0:03:21]} 10. Bd3 {[%emt 0:01:52]} Qxf4 {[%emt 0:00:08]} 11. Bxf4 {[%emt 0:00:02]} g6 {[%emt 0:01:58]} 12. a4 {[%emt 0:05:00]} Nd5 {[%emt 0:07:37]} 13. Bd2 {[%emt 0:01:18]} Bf5 {[%emt 0:02:58]} 14. Bxf5 {[%emt 0:00:44]} gxf5 {[%emt 0:00:23]} 15. O-O {[%emt 0:06:23]} Bg7 {[%emt 0:06:07]} 16. Rfe1 {[%emt 0:14:37]} e6 {[%emt 0:01:51]} 17. a5 {[%emt 0:02:54]} a6 {[%emt 0:03:59]} 18. c4 {[%emt 0:08:44]} Nf6 {[%emt 0:05:40]} 19. Bb4 {[%emt 0:04:02]} Ne4 {[%emt 0:07:47]} 20. Rad1 {[%emt 0:06:36]} O-O-O {[%emt 0:08:27]} 21. Ba3 {[%emt 0:07:12]} Rd7 {[%emt 0:02:43]} 22. Ne5 {[%emt 0:08:08]} Bxe5 {[%emt 0:00:58]} 23. dxe5 {[%emt 0:00:05]} Rhd8 {[%emt 0:09:19]} 24. Rc1 {[%emt 0:04:55]} Rd2 {[%emt 0:02:23]} 25. Rf1 {[%emt 0:06:27]} Re2 {[%emt 0:06:09]} 26. Rfe1 {[%emt 0:03:00]} Rxe1+ {[%emt 0:00:26]} 27. Rxe1 {[%emt 0:00:07]} Nd2 {[%emt 0:00:22]} 28. Bb4 {[%emt 0:03:34]} Nxc4 {[%emt 0:00:33]} 29. Bc3 {[%emt 0:02:42]} Rd5 {[%emt 0:02:34]} 30. f3 {[%emt 0:00:28]} Nxa5 {[%emt 0:00:29]} 31. g4 {[%emt 0:00:05]} fxg4 {[%emt 0:01:29]} 32. fxg4 {[%emt 0:00:05]} Nc4 {[%emt 0:01:33]} 33. Re4 {[%emt 0:02:08]} b5 {[%emt 0:00:39]} 34. g5 {[%emt 0:00:15]} Kd7 {[%emt 0:01:17]} 35. Rh4 {[%emt 0:00:30]} Nxe5 {[%emt 0:00:33]} 36. Rxh7 {[%emt 0:00:22]} Nf3+ {[%emt 0:00:14]} 37. Kg2 {[%emt 0:00:08]} Nxg5 {[%emt 0:00:15]} 38. Rg7 {[%emt 0:00:22]} Ke7 {[%emt 0:00:58]} 39. h4 {[%emt 0:01:32]} Ne4 {[%emt 0:00:14]} 40. Ba5 {[%emt 0:00:00]} Kf6 {[%emt 0:00:00]} 41. Rg8 {[%emt 0:00:34]} Rf5 {[%emt 0:09:55]} 42. b4 {[%emt 0:04:08]} c5 {[%emt 0:02:04]} 43. bxc5 {[%emt 0:00:08]} Nxc5 {[%emt 0:00:42]} 44. Bc3+ {[%emt 0:04:28]} e5 {[%emt 0:00:23]} 45. Rc8 {[%emt 0:00:17]} Ne6 {[%emt 0:02:21]} 46. Rc6 {[%emt 0:00:14]} Rf4 {[%emt 0:00:10]} 47. Ba5 {[%emt 0:00:26]} Kf5 {[%emt 0:00:51]} 48. h5 {[%emt 0:01:04]} Ra4 {[%emt 0:01:24]} 49. h6 {[%emt 0:00:19]} Kg6 {[%emt 0:00:25]} 50. Rxa6 {[%emt 0:00:14]} b4 {[%emt 0:00:46]} 0-1

[Event "FIDE WYCC Open U14 2023"]
[Site "Montesilvano"]
[Date "2023.11.23"]
[Round "10.26"]
[White "George Micheal, Kevin"]
[Black "Nainys, Zanas"]
[Result "*"]
[WhiteElo "2317"]
[BlackElo "1974"]
[Annotator "RC"]
[PlyCount "46"]
[EventDate "2023.11.13"]
[EventType "swiss"]
[EventCountry "ITA"]
[SourceTitle "playchess.com"]
[Source "ChessBase"]
[SourceQuality "1"]
[TimeControl "40/5400+30:1800+30"]

1. e4 {[%emt 0:00:24]} Nc6 {[%emt 0:03:16]} 2. d4 {[%emt 0:00:27]} d5 {[%emt 0:00:03]} 3. e5 {[%emt 0:00:28]} f6 {[%emt 0:00:01]} 4. f4 {[%emt 0:04:43]} Bf5 {[%emt 0:01:40]} 5. c3 {[%emt 0:02:28]} e6 {[%emt 0:02:11]} 6. Bd3 {[%emt 0:06:39]} Nh6 {[%emt 0:27:27]} 7. Nf3 {[%emt 0:18:22]} Be7 {[%emt 0:00:36]} 8. O-O {[%emt 0:08:17]} O-O {[%emt 0:02:39]} 9. Qe2 {[%emt 0:03:16]} Qd7 {[%emt 0:06:12]} 10. Nbd2 {[%emt 0:03:12]} fxe5 {[%emt 0:05:33]} 11. fxe5 {[%emt 0:01:00]} Bxd3 {[%emt 0:02:12]} 12. Qxd3 {[%emt 0:00:08]} b6 {[%emt 0:00:04]} 13. Nb3 {[%emt 0:04:21]} Nf5 {[%emt 0:00:10]} 14. Bd2 {[%emt 0:04:21]} Nd8 {[%emt 0:05:21]} 15. Nc1 {[%emt 0:04:48]} c5 {[%emt 0:00:52]} 16. Ne2 {[%emt 0:00:21]} Nc6 {[%emt 0:01:28]} 17. Rf2 {[%emt 0:09:31]} Rf7 {[%emt 0:03:32]} 18. Raf1 {[%emt 0:03:55]} Raf8 {[%emt 0:00:15]} 19. g3 {[%emt 0:01:35]} Na5 {[%emt 0:05:15]} 20. Bg5 {[%emt 0:03:10]} Qd8 {[%emt 0:06:27]} 21. Nf4 {[%emt 0:01:37]} c4 {[%emt 0:15:17]} 22. Qb1 {[%emt 0:00:43]} Qd7 {[%emt 0:03:41]} 23. Bxe7 {[%emt 0:00:33]} Rxe7 {[%emt 0:03:18]} *

[Event "FIDE WYCC Open U14 2023"]
[Site "Montesilvano"]
[Date "2023.11.23"]
[Round "10.27"]
[White "Tenuunbold, Battulga"]
[Black "Bochniak, Franciszek"]
[Result "1-0"]
[ECO "A50"]
[WhiteElo "2290"]
[BlackElo "1954"]
[Annotator "RC"]
[PlyCount "81"]
[EventDate "2023.11.13"]
[EventType "swiss"]
[EventCountry "ITA"]
[SourceTitle "playchess.com"]
[Source "ChessBase"]
[SourceQuality "1"]
[TimeControl "40/5400+30:1800+30"]

1. d4 {[%emt 0:00:03]} Nf6 {[%emt 0:00:14]} 2. c4 {[%emt 0:00:14]} b6 {[%emt 0:00:04]} 3. f3 {[%emt 0:00:26]} Nc6 {[%emt 0:00:06]} 4. Nc3 {[%emt 0:00:36]} e5 {[%emt 0:00:04]} 5. d5 {[%emt 0:00:18]} Ne7 {[%emt 0:00:01]} 6. e4 {[%emt 0:00:29]} Ng6 {[%emt 0:00:06]} 7. Nge2 {[%emt 0:00:49]} Bc5 {[%emt 0:00:50]} 8. h4 {[%emt 0:01:41]} Nh5 {[%emt 0:15:55]} 9. Bg5 {[%emt 0:00:46]} Be7 {[%emt 0:05:20]} 10. Bxe7 {[%emt 0:00:47]} Qxe7 {[%emt 0:00:20]} 11. d6 {[%emt 0:00:12]} cxd6 {[%emt 0:05:49]} 12. g4 {[%emt 0:08:16]} Nhf4 {[%emt 0:05:39]} 13. h5 {[%emt 0:00:21]} Nxe2 {[%emt 0:02:12]} 14. Nd5 {[%emt 0:00:06]} Qd8 {[%emt 0:03:38]} 15. Bxe2 {[%emt 0:00:25]} Nf8 {[%emt 0:13:50]} 16. Ne3 {[%emt 0:01:51]} g6 {[%emt 0:02:45]} 17. hxg6 {[%emt 0:04:06]} fxg6 {[%emt 0:00:46]} 18. Qxd6 {[%emt 0:04:50]} Qe7 {[%emt 0:00:04]} 19. c5 {[%emt 0:08:24]} bxc5 {[%emt 0:06:29]} 20. Qd5 {[%emt 0:00:03]} Rb8 {[%emt 0:00:45]} 21. Nc4 {[%emt 0:00:05]} Kd8 {[%emt 0:24:00]} 22. O-O-O {[%emt 0:07:52]} Bb7 {[%emt 0:08:06]} 23. Qd2 {[%emt 0:00:07]} Ne6 {[%emt 0:01:10]} 24. Qa5+ {[%emt 0:04:37]} Ke8 {[%emt 0:00:20]} 25. Nd6+ {[%emt 0:01:31]} Kf8 {[%emt 0:00:01]} 26. Qxa7 {[%emt 0:00:07]} Kg7 {[%emt 0:00:21]} 27. Nxb7 {[%emt 0:02:31]} d6 {[%emt 0:02:06]} 28. Ba6 {[%emt 0:02:12]} Nc7 {[%emt 0:01:14]} 29. Nxd6 {[%emt 0:01:30]} Ra8 {[%emt 0:00:16]} 30. Qxc5 {[%emt 0:00:23]} Qg5+ {[%emt 0:00:30]} 31. Kb1 {[%emt 0:00:05]} Nxa6 {[%emt 0:00:04]} 32. Nf5+ {[%emt 0:00:15]} Qxf5 {[%emt 0:00:32]} 33. Qc6 {[%emt 0:00:39]} Qf7 {[%emt 0:02:50]} 34. Rd7 {[%emt 0:00:05]} Ra7 {[%emt 0:00:24]} 35. Rxf7+ {[%emt 0:00:04]} Kxf7 {[%emt 0:00:03]} 36. Qb6 {[%emt 0:00:10]} Raa8 {[%emt 0:00:24]} 37. Qb7+ {[%emt 0:00:02]} Kf6 {[%emt 0:00:12]} 38. g5+ {[%emt 0:01:12]} Ke6 {[%emt 0:01:00]} 39. Rc1 {[%emt 0:00:10]} Rhd8 {[%emt 0:00:54]} 40. Rc6+ {[%emt 0:00:00]} Rd6 {[%emt 0:00:00]} 41. Qxa8 {[%emt 0:00:19]} 1-0

[Event "FIDE WYCC Open U14 2023"]
[Site "Montesilvano"]
[Date "2023.11.23"]
[Round "10.28"]
[White "Radzimski, Antoni"]
[Black "Balint, Peter"]
[Result "*"]
[ECO "E46"]
[WhiteElo "1904"]
[BlackElo "2256"]
[Annotator "RC"]
[PlyCount "63"]
[EventDate "2023.11.13"]
[EventType "swiss"]
[EventCountry "ITA"]
[SourceTitle "playchess.com"]
[Source "ChessBase"]
[SourceQuality "1"]
[TimeControl "40/5400+30:1800+30"]

1. d4 {[%emt 0:00:08]} Nf6 {[%emt 0:00:05]} 2. c4 {[%emt 0:00:05]} e6 {[%emt 0:00:05]} 3. Nc3 {[%emt 0:00:05]} Bb4 {[%emt 0:00:04]} 4. e3 {[%emt 0:00:04]} O-O {[%emt 0:00:06]} 5. Bd3 {[%emt 0:00:03]} d5 {[%emt 0:01:36]} 6. a3 {[%emt 0:00:04]} Bxc3+ {[%emt 0:00:40]} 7. bxc3 {[%emt 0:00:01]} dxc4 {[%emt 0:00:12]} 8. Bxc4 {[%emt 0:00:05]} c5 {[%emt 0:00:11]} 9. Ne2 {[%emt 0:00:06]} Qc7 {[%emt 0:00:41]} 10. Bd3 {[%emt 0:00:07]} Nc6 {[%emt 0:06:08]} 11. O-O {[%emt 0:00:14]} e5 {[%emt 0:03:30]} 12. f4 {[%emt 0:03:37]} exd4 {[%emt 0:04:41]} 13. cxd4 {[%emt 0:00:51]} cxd4 {[%emt 0:00:08]} 14. e4 {[%emt 0:00:07]} Nd7 {[%emt 0:19:29]} 15. Qc2 {[%emt 0:09:52]} b6 {[%emt 0:29:18]} 16. Nxd4 {[%emt 0:11:05]} Nc5 {[%emt 0:00:24]} 17. Nxc6 {[%emt 0:04:35]} Nxd3 {[%emt 0:05:35]} 18. Qxd3 {[%emt 0:05:28]} Qxc6 {[%emt 0:00:05]} 19. e5 {[%emt 0:16:59]} Bb7 {[%emt 0:02:35]} 20. Rf2 {[%emt 0:02:12]} Rad8 {[%emt 0:03:05]} 21. Qe2 {[%emt 0:00:33]} f5 {[%emt 0:04:51]} 22. Bb2 {[%emt 0:02:13]} Qe6 {[%emt 0:00:05]} 23. Rc1 {[%emt 0:04:20]} Be4 {[%emt 0:01:54]} 24. Qe1 {[%emt 0:02:49]} Rd5 {[%emt 0:07:26]} 25. Rd2 {[%emt 0:02:51]} Rfd8 {[%emt 0:02:20]} 26. Rcd1 {[%emt 0:01:05]} Qg6 {[%emt 0:00:40]} 27. g3 {[%emt 0:01:27]} Qg4 {[%emt 0:03:08]} 28. Rxd5 {[%emt 0:01:24]} Rxd5 {[%emt 0:00:07]} 29. Rxd5 {[%emt 0:03:39]} Bxd5 {[%emt 0:00:10]} 30. Qc3 {[%emt 0:00:46]} Qd1+ {[%emt 0:00:47]} 31. Kf2 {[%emt 0:00:11]} Be6 {[%emt 0:02:37]} 32. Qc6 {[%emt 0:02:09]} *